Cogmind - Beta 10.2 *** ADVENTURER MODE // 2020.11.28 @ 11:27:43 // Halloween2020/ForbiddenLore Player: FictionXVI Result: Destroyed by YT-38Y(z) with Zionite Laser-S Performance ------------- Evolutions (3) 1500 Regions Visited (10) 2000 Robots Destroyed (50) 250 Value Destroyed (1558) 1558 Prototype IDs (7) 140 Alien Tech Used (0) 0 Bonus (33) 33 TOTAL SCORE: 5481 Bonus ------- High Alert Combat Kills 33 Cogmind --------- Core Integrity 0/700 Matter 26/300 Energy 52/100 System Corruption 0% Temperature Cool (9) Movement Core (50) Location -7/Deep Caves Parts ------- > --- POWER (2) -------- (None) > --- PROPULSION (4) --- (None) > --- UTILITY (4) ------ Surveybot 24 Chip Makeshift Hacking Suite > --- WEAPON (3) ------- CR-A16's Pointy Stick > --- INVENTORY (4) ---- Heavy Missile Launcher Heavy Missile Launcher Peak State ------------ > --- POWER ------------ Neutrino Core > --- PROPULSION ------- Airjet Gravmag System > --- UTILITY ---------- Surveybot 24 Scanner Heart of Steel > --- WEAPON ----------- Heavy Missile Launcher CR-A16's Pointy Stick > --- INVENTORY -------- Deuterium Engine Makeshift Hacking Suite Heavy Missile Launcher Heavy Missile Launcher [Rating: 51] Favorites ----------- Power Neutrino Core Engine Light Deuterium Engine Power Core Neutrino Core Propulsion Airjet Wheel Wheel Hover Unit Airjet Flight Unit Flight Unit Utility Small Storage Unit Device Heart of Steel Storage Small Storage Unit Processor Enhanced Optical Array Hackware Hacking Suite Protection Improved Medium Armor Plating Weapon Heavy Missile Launcher Energy Gun Electrolaser Ballistic Gun Assault Rifle Launcher Heavy Missile Launcher Piercing Weapon CR-A16's Pointy Stick Special Melee Weapon Datajack Build | -11 -10 -9 -8 -7 -7 -7 -7 -7 -7 -7 ------- Run | Scr Mat Mat Mat Fac Was Fac Low Low Zio Dee Slots Evolved 6 | . . 2 2 2 . . . . . . Power 1 | . . . . 1 . . . . . . Propulsion 2 | . . 1 1 . . . . . . . Utility 2 | . . 1 . 1 . . . . . . Weapon 1 | . . . 1 . . . . . . . Parts Attached 69 | 9 . 2 25 2 . 15 8 2 2 4 Power 10 | 1 . . 3 1 . 2 1 1 . 1 Engine 8 | 1 . . 3 1 . 2 . . . 1 Core 2 | . . . . . . . 1 1 . . Reactor . | . . . . . . . . . . . Propulsion 23 | 3 . 1 11 1 . 5 1 . 1 . Treads . | . . . . . . . . . . . Leg . | . . . . . . . . . . . Wheel 3 | 3 . . . . . . . . . . Hover 12 | . . 1 3 1 . 5 1 . 1 . Flight 8 | . . . 8 . . . . . . . Utility 18 | 3 . 1 1 . . 6 3 1 . 3 Device 7 | 1 . 1 . . . 2 1 1 . 1 Storage 4 | 1 . . . . . 3 . . . . Processor 3 | 1 . . . . . 1 . . . 1 Hackware 3 | . . . 1 . . . 1 . . 1 Protection 1 | . . . . . . . 1 . . . Artifact . | . . . . . . . . . . . Weapon 18 | 2 . . 10 . . 2 3 . 1 . Energy Gun 3 | 1 . . 1 . . . 1 . . . Energy Cannon . | . . . . . . . . . . . Ballistic Gun 7 | 1 . . 4 . . 1 1 . . . Ballistic Cannon . | . . . . . . . . . . . Launcher 6 | . . . 4 . . 1 1 . . . Special Weapon . | . . . . . . . . . . . Impact Weapon . | . . . . . . . . . . . Slashing Weapon . | . . . . . . . . . . . Piercing Weapon 1 | . . . . . . . . . 1 . Special Melee Weapon 1 | . . . 1 . . . . . . . Unidentified Prototypes 3 | . . . 2 . . . . 1 . . Parts Lost 25 | . . . 4 . . 8 3 4 . 6 Power 5 | . . . . . . 2 . 1 . 2 Propulsion 8 | . . . 1 . . 4 . 1 . 2 Utility 4 | . . . . . . . 3 . . 1 Weapon 8 | . . . 3 . . 2 . 2 . 1 Highest Loss Streak 7 | . . . 3 . . 7 1 3 . 6 Average Slot Usage (%) 62 | . 100 89 89 53 38 67 63 58 32 51 Engine 4 | . 14 11 9 7 7 11 . . . . Core 3 | . . . . . . . 5 6 7 6 Wheel 2 | . 28 22 . . . . . . . . Hover 11 | . . 4 9 3 7 17 14 15 8 14 Flight 2 | . . . 19 15 . . . . . . Device 7 | . 14 18 17 3 . 9 2 3 7 7 Storage 2 | . . . . . . 4 7 3 . . Processor 4 | . 14 11 8 . . . 7 6 . 4 Hackware 2 | . . . . 7 7 7 2 . . 2 Protection 1 | . . . . . . . 4 3 . . Energy Gun 3 | . 14 11 3 . . . 6 4 . . Ballistic Gun 4 | . 14 11 12 . . . 3 4 . . Launcher 7 | . . . 1 15 15 14 6 7 7 6 Naked Turns . | . . . . . . . . . . . Heaviest Build 60 | 13 9 9 22 23 23 60 37 37 34 39 Greatest Support 49 | 26 20 26 33 24 11 49 18 18 20 20 Greatest Overweight (x) 7 | . . . 1 7 2 6 2 3 3 2 Average Overweight (x) . | . . . . . 2 . 1 1 2 . Largest Inventory Capacity 12 | 6 4 4 4 4 4 12 6 6 4 4 Average Capacity 4 | 4 4 4 4 4 4 5 6 4 4 4 Most Carried 7 | 4 4 4 4 4 4 7 6 6 4 4 Average Carried 4 | 1 3 4 3 3 4 4 4 4 4 3 Final Capacity 6 | 4 4 4 4 4 4 6 6 4 4 4 Final Carried 6 | 4 4 4 4 4 4 6 5 4 4 2 Class Distribution -------------------- 45% | Mutant 27% | Hacker-Mutant 13% | Bomber 7% | Scavenger-Mutant Dominant Class ---------------- Mutant | -10/Materials Mutant | -9/Materials Scavenger-Mutant | -8/Materials Hacker-Mutant | -7/Factory Hacker-Mutant | -7/Waste Hacker-Mutant | -7/Factory Bomber | -7/Lower Caves Bomber | -7/Lower Caves Mutant | -7/Zion Mutant | -7/Deep Caves Resources | -11 -10 -9 -8 -7 -7 -7 -7 -7 -7 -7 ----------- Run | Scr Mat Mat Mat Fac Was Fac Low Low Zio Dee Matter Collected 1688 | 281 20 . 388 . . 394 403 162 17 23 Remotely 248 | . . . . . . . 248 . . . Salvage Created 1304 | 91 91 . 802 . . 132 100 65 . 23 Parts 97 | 5 4 . 58 . . 19 7 4 . . Haulers Intercepted 2 | . 1 . 1 . . . . . . . Recyclers Shooed 1 | . . . . 1 . . . . . . Parts Field Recycled . | . . . . . . . . . . . Retrieved Matter . | . . . . . . . . . . . Parts Self-Destructed 12 | . . . . . . . 3 9 . . Prevented . | . . . . . . . . . . . Kills | -11 -10 -9 -8 -7 -7 -7 -7 -7 -7 -7 ------- Run | Scr Mat Mat Mat Fac Was Fac Low Low Zio Dee Combat Hostiles Destroyed 32 | . . . 18 . . 6 6 2 . . Guns 17 | . . . 14 . . 2 . 1 . . AOE 15 | . . . 4 . . 4 6 1 . . Classes Destroyed 13 | 2 2 . 5 . . 2 1 1 . . Worker 3 | . . . 3 . . . . . . . Builder 4 | . . . 2 . . 2 . . . . Tunneler 2 | 1 . . . . . 1 . . . . Hauler 2 | . 1 . 1 . . . . . . . Recycler 1 | 1 . . . . . . . . . . Operator 1 | . . . . . . 1 . . . . Watcher 5 | . 2 . 3 . . . . . . . Swarmer 11 | . . . 6 . . 2 3 . . . Grunt 13 | . . . 9 . . 2 2 . . . Sentry 4 | . . . 3 . . 1 . . . . Hunter 1 | . . . . . . . 1 . . . Programmer 2 | . . . . . . 1 . 1 . . Behemoth 1 | . . . . . . . . 1 . . Best Kill Streak 8 | 2 2 . 8 . . 3 3 1 . . Combat Bots Only 4 | . . . 4 . . 2 3 1 . . Max Kills in Single Turn 3 | 1 1 . 2 . . 3 2 1 . . Gunslinging 1 | . . . 1 . . . . . . . Exploded 2 | . . . 1 . . 2 2 1 . . Melee . | . . . . . . . . . . . Uniques/NPCs Destroyed . | . . . . . . . . . . . Combat | -11 -10 -9 -8 -7 -7 -7 -7 -7 -7 -7 -------- Run | Scr Mat Mat Mat Fac Was Fac Low Low Zio Dee Damage Taken 2665 | . 22 . 675 . . 733 113 293 . 829 Core 794 | . 11 . 64 . . 115 26 61 . 517 Absorbed by Shields . | . . . . . . . . . . . Core Remaining (%) 95 | 100 95 100 88 . . . . . . . Volleys Fired 114 | 2 9 . 65 . . 25 7 6 . . Largest 3 | 2 2 . 3 . . 3 2 3 . . Hottest 122 | 60 60 . 101 . . 103 102 122 . . Shots Fired 201 | 4 18 . 119 . . 35 12 13 . . Gun 160 | 4 18 . 105 . . 21 5 7 . . Cannon . | . . . . . . . . . . . Launcher 41 | . . . 14 . . 14 7 6 . . Special . | . . . . . . . . . . . Kinetic 120 | 2 9 . 84 . . 21 . 4 . . Thermal 17 | . . . 9 . . . 5 3 . . Explosive 41 | . . . 14 . . 14 7 6 . . Electromagnetic 23 | 2 9 . 12 . . . . . . . Robot Hit Streak 28 | 4 9 . 28 . . 8 10 10 . . Robot Miss Streak 3 | . 1 . 3 . . 2 2 1 . . Penetration Max . | . . . . . . . . . . . Secondary Targets 3 | . . . 3 . . . . . . . Max Gunslinging Chain 1 | . . . 1 . . . . . . . Shots Hit Robots 159 | 4 13 . 93 . . 27 8 10 . 4 Core Hits 98 | 3 5 . 53 . . 18 9 7 . 3 Critical Hits . | . . . . . . . . . . . Critical Kills . | . . . . . . . . . . . Critical Parts Destroyed . | . . . . . . . . . . . Melee Attacks 9 | . . . 4 . . . . . . 5 Impact . | . . . . . . . . . . . Slashing . | . . . . . . . . . . . Piercing 5 | . . . . . . . . . . 5 Sneak Attacks 1 | . . . 1 . . . . . . . Combat Hostiles . | . . . . . . . . . . . Follow-up Attacks . | . . . . . . . . . . . Damage Inflicted 5196 | 46 250 . 2016 1 . 1624 696 346 . 217 Guns 1739 | 46 197 . 1050 . . 280 70 96 . . Cannons . | . . . . . . . . . . . Explosions 3237 | . 53 . 966 . . 1344 626 248 . . Melee 217 | . . . . . . . . . . 217 Ramming 3 | . . . . 1 . . . 2 . . Kinetic 1131 | 16 38 . 760 . . 280 . 37 . . Thermal 376 | . 53 . 194 . . . 70 59 . . Explosive 3140 | . . . 922 . . 1344 626 248 . . Electromagnetic 329 | 30 159 . 140 . . . . . . . Impact . | . . . . . . . . . . . Slashing . | . . . . . . . . . . . Piercing 217 | . . . . . . . . . . 217 Highest Corruption . | . . . . . . . . . . . Average Corruption . | . . . . . . . . . . . Corruption Purged . | . . . . . . . . . . . Overload Shots . | . . . . . . . . . . . Overflow Damage 255 | . . . 28 . . 161 66 . . . Projectiles . | . . . . . . . . . . . Explosions 255 | . . . 28 . . 161 66 . . . Melee . | . . . . . . . . . . . Knockbacks . | . . . . . . . . . . . Impact . | . . . . . . . . . . . Kinetic . | . . . . . . . . . . . Secondary . | . . . . . . . . . . . Self-Inflicted Damage 164 | . 23 . 29 . . 30 48 34 . . Shots 7 | . 1 . 1 . . 1 2 2 . . Rammed 2 | . . . . 1 . . . 1 . . Targets Rammed 2 | . . . . 1 . . . 1 . . Kicked . | . . . . . . . . . . . Crushed . | . . . . . . . . . . . Highest Temperature 153 | 10 40 . 153 . . 114 75 86 . 3 Average Temperature 39 | 7 19 . 52 . . 29 41 39 . 3 Received Heat Transfer 816 | . . . 297 . . 177 9 36 . 297 Siege Activations . | . . . . . . . . . . . Robots Corrupted . | . . . . . . . . . . . Combat Hostiles . | . . . . . . . . . . . Parts Fried 2 | . 2 . . . . . . . . . Impact Corruptions . | . . . . . . . . . . . Robots Melted . | . . . . . . . . . . . Combat Hostiles . | . . . . . . . . . . . Parts Melted . | . . . . . . . . . . . Heat Transferred 705 | . 100 . 346 . . . 148 111 . . Parts Sabotaged . | . . . . . . . . . . . Parts Stolen . | . . . . . . . . . . . Parts Stripped . | . . . . . . . . . . . Power Chain Reactions 3 | . 2 . 1 . . . . . . . Missiles Intercepted . | . . . . . . . . . . . Alert | -11 -10 -9 -8 -7 -7 -7 -7 -7 -7 -7 ------- Run | Scr Mat Mat Mat Fac Was Fac Low Low Zio Dee Peak Influence 597 | 10 147 38 597 262 76 233 . . . . Initial 232 | . 5 . . 232 76 46 . . . . Average 112 | 7 60 24 141 254 76 117 . . . . Maximum Alert Level 2 | . . . 2 1 . 1 . . . . Low Security (%) 81 | 100 100 100 72 . 100 85 . . . . Level 1 17 | . . . 23 100 . 14 . . . . Level 2 1 | . . . 4 . . . . . . . Level 3 . | . . . . . . . . . . . Level 4 . | . . . . . . . . . . . Level 5 . | . . . . . . . . . . . High Security . | . . . . . . . . . . . Max Security . | . . . . . . . . . . . Squads Dispatched 10 | . . . 3 . . 7 . . . . Investigation 1 | . . . . . . 1 . . . . Extermination 2 | . . . . . . 2 . . . . Reinforcement 4 | . . . 2 . . 2 . . . . Assault . | . . . . . . . . . . . Garrison 3 | . . . 1 . . 2 . . . . Intercept . | . . . . . . . . . . . Construction Impeded 2 | . . . 1 . . 1 . . . . Haulers Reinforced . | . . . . . . . . . . . Stealth | -11 -10 -9 -8 -7 -7 -7 -7 -7 -7 -7 --------- Run | Scr Mat Mat Mat Fac Was Fac Low Low Zio Dee Distress Signals 3 | . . . 3 . . . . . . . Communications Jammed . | . . . . . . . . . . . Distress Signals . | . . . . . . . . . . . Times Spotted 75 | . 4 2 28 . 6 19 8 5 . 3 Peak Tracking Total 8 | . 2 2 7 . 6 8 3 3 . 3 Tactical Retreats 7 | . 1 . 3 . . 2 1 . . . Traps | -11 -10 -9 -8 -7 -7 -7 -7 -7 -7 -7 ------- Run | Scr Mat Mat Mat Fac Was Fac Low Low Zio Dee Traps Triggered 5 | . . . . 1 . 4 . . . . Indirectly . | . . . . . . . . . . . Trap Hack Attempts . | . . . . . . . . . . . Triggered . | . . . . . . . . . . . Disarmed 1 | . . . 1 . . . . . . . Reprogrammed . | . . . . . . . . . . . Reused . | . . . . . . . . . . . Traps Extracted . | . . . . . . . . . . . Installed . | . . . . . . . . . . . Triggered 1 | . . . . . . . . 1 . . Machines | -11 -10 -9 -8 -7 -7 -7 -7 -7 -7 -7 ---------- Run | Scr Mat Mat Mat Fac Was Fac Low Low Zio Dee Machines Disabled 14 | . 1 . 3 . . 10 . . . . Max in Single Turn 5 | . 1 . 2 . . 5 . . . . Machines Sabotaged . | . . . . . . . . . . . Garrisons Compromised . | . . . . . . . . . . . Overloaded Fab Kills . | . . . . . . . . . . . Fab Network Shutdowns . | . . . . . . . . . . . Hacking | -11 -10 -9 -8 -7 -7 -7 -7 -7 -7 -7 --------- Run | Scr Mat Mat Mat Fac Was Fac Low Low Zio Dee Machines Accessed 15 | . 3 4 1 . . 4 1 1 1 . Terminals 12 | . 3 3 1 . . 4 1 . . . Fabricators . | . . . . . . . . . . . Repair Stations . | . . . . . . . . . . . Recycling Units 1 | . . 1 . . . . . . . . Scanalyzers . | . . . . . . . . . . . Garrison Access . | . . . . . . . . . . . Total Hacks 37 | . 10 9 2 . . 9 1 1 5 . Successful 22 | . 5 5 2 . . 3 1 1 5 . Failed 15 | . 5 4 . . . 6 . . . . Catastrophic 4 | . . 1 . . . 3 . . . . Database Lockouts . | . . . . . . . . . . . Manual 21 | . 3 5 1 . . 7 1 . 4 . Terminals 30 | . 10 8 2 . . 9 1 . . . Fabricators . | . . . . . . . . . . . Repair Stations . | . . . . . . . . . . . Recycling Units 1 | . . 1 . . . . . . . . Scanalyzers . | . . . . . . . . . . . Garrison Access . | . . . . . . . . . . . Terminal Hacks 21 | . 5 4 2 . . 3 1 1 5 . Record 2 | . . . . . . 1 1 . . . Part Schematic 5 | . . . . . . . . . 5 . Prototype ID Bank 2 | . 1 . . . . 1 . . . . Open Door 1 | . . . . . . . . 1 . . Level Access Points 2 | . 1 1 . . . . . . . . Branch Access Points 1 | . 1 . . . . . . . . . Emergency Access Points 1 | . 1 . . . . . . . . . Terminal Index 1 | . . 1 . . . . . . . . Alert Level 2 | . 1 1 . . . . . . . . Unreport Threat 1 | . . 1 . . . . . . . . Locate Traps 1 | . . . 1 . . . . . . . Disarm Traps 1 | . . . 1 . . . . . . . Hauler Manifests 1 | . . . . . . 1 . . . . Fabricator Hacks . | . . . . . . . . . . . Repair Station Hacks . | . . . . . . . . . . . Recycling Unit Hacks 1 | . . 1 . . . . . . . . Report Inventory 1 | . . 1 . . . . . . . . Scanalyzer . | . . . . . . . . . . . Garrison Access Hacks . | . . . . . . . . . . . Unauthorized Hacks . | . . . . . . . . . . . Terminals . | . . . . . . . . . . . Fabricators . | . . . . . . . . . . . Repair Stations . | . . . . . . . . . . . Recycling Units . | . . . . . . . . . . . Scanalyzers . | . . . . . . . . . . . Garrison Access . | . . . . . . . . . . . Data Cores Recovered . | . . . . . . . . . . . Used . | . . . . . . . . . . . Hacking Detections 11 | . 3 3 1 . . 4 . . . . Full Trace Events . | . . . . . . . . . . . Feedback Events . | . . . . . . . . . . . Feedback Blocked . | . . . . . . . . . . . Robot Schematics Acquired . | . . . . . . . . . . . Robots Built . | . . . . . . . . . . . Matter . | . . . . . . . . . . . Time . | . . . . . . . . . . . Total Robot Build Rating . | . . . . . . . . . . . Part Schematics Acquired 5 | . . . . . . . . . 5 . Parts Built . | . . . . . . . . . . . Matter . | . . . . . . . . . . . Time . | . . . . . . . . . . . Total Part Build Rating . | . . . . . . . . . . . Parts Repaired . | . . . . . . . . . . . Time . | . . . . . . . . . . . Parts Recycled . | . . . . . . . . . . . Recycled Matter . | . . . . . . . . . . . Retrieved Matter . | . . . . . . . . . . . Retrieved Components . | . . . . . . . . . . . Parts Scanalyzed . | . . . . . . . . . . . Part Schematics Acquired . | . . . . . . . . . . . Parts Damaged . | . . . . . . . . . . . Bothacking | -11 -10 -9 -8 -7 -7 -7 -7 -7 -7 -7 ------------ Run | Scr Mat Mat Mat Fac Was Fac Low Low Zio Dee Used RIF Installer . | . . . . . . . . . . . Robots Hacked 2 | . . . 2 . . . . . . . Non-combat 2 | . . . 2 . . . . . . . Combat . | . . . . . . . . . . . Robot Hacks Applied 2 | . . . 2 . . . . . . . parse_system 1 | . . . 1 . . . . . . . no_distress 1 | . . . 1 . . . . . . . Relay Couplers Released . | . . . . . . . . . . . Robots Rewired . | . . . . . . . . . . . Allies Hacked . | . . . . . . . . . . . Hacks Repelled . | . . . . . . . . . . . Allies | -11 -10 -9 -8 -7 -7 -7 -7 -7 -7 -7 -------- Run | Scr Mat Mat Mat Fac Was Fac Low Low Zio Dee Total Allies . | . . . . . . . . . . . Largest Group . | . . . . . . . . . . . Highest-Rated Group . | . . . . . . . . . . . Highest-Rated Ally . | . . . . . . . . . . . Total Orders . | . . . . . . . . . . . Ally Attacks . | . . . . . . . . . . . Total Damage . | . . . . . . . . . . . Kills . | . . . . . . . . . . . Allies Corrupted . | . . . . . . . . . . . Allies Melted . | . . . . . . . . . . . Intel | -11 -10 -9 -8 -7 -7 -7 -7 -7 -7 -7 ------- Run | Scr Mat Mat Mat Fac Was Fac Low Low Zio Dee Robot Analysis Total . | . . . . . . . . . . . Derelict Logs Recovered 2 | . . . . . . . 2 . . . Drone Launches . | . . . . . . . . . . . Drone Recoveries . | . . . . . . . . . . . Exploration | -11 -10 -9 -8 -7 -7 -7 -7 -7 -7 -7 ------------- Run | Scr Mat Mat Mat Fac Was Fac Low Low Zio Dee Turns Passed 6012 | 98 412 170 742 183 215 1062 914 818 1080 318 Spaces Moved 3962 | 88 206 184 565 118 120 835 558 574 519 195 Core 15 | 6 . . . 1 . 5 . . . 3 Treads . | . . . . . . . . . . . Legs . | . . . . . . . . . . . Wheels 376 | 82 206 88 . . . . . . . . Hover 3146 | . . 96 213 44 120 830 558 574 519 192 Flight 425 | . . . 352 73 . . . . . . Fastest Speed 29 | 50 80 70 29 29 180 48 56 56 116 50 Average Speed 110 | 80 80 74 42 88 180 80 128 134 207 111 Slowest Speed 400 | 90 80 80 120 400 180 350 176 240 240 150 Overloaded Moves . | . . . . . . . . . . . Propulsion Burnouts . | . . . . . . . . . . . Robots Hopped 2 | . . . . . . . . 2 . . Cave-ins Triggered . | . . . . . . . . . . . Exploration Rate (%) 40 | 4 38 20 50 5 76 31 66 75 56 29 Regions Visited 10 Branch Regions 4 Pre-discovered Areas 2 | . . . . . . . . . 2 . Known Exits Taken 2 | . 1 1 . . . . . . . . Unknown Exits Taken 6 | 1 . . 1 . . 1 1 1 1 . Scrap Searched 10 | . . . . . . . 5 4 1 . Spaces Dug 28 | . . . 28 . . . . . . . Terrain Destroyed 462 | . 7 . 122 . . 181 89 63 . . Melee . | . . . . . . . . . . . Projectile . | . . . . . . . . . . . AOE 462 | . 7 . 122 . . 181 89 63 . . Terrain Rammed . | . . . . . . . . . . . Walls Destroyed . | . . . . . . . . . . . Machines Disabled . | . . . . . . . . . . . Actions | -11 -10 -9 -8 -7 -7 -7 -7 -7 -7 -7 --------- Run | Scr Mat Mat Mat Fac Was Fac Low Low Zio Dee Total 5378 | 108 437 215 951 200 119 1199 739 604 521 285 Wait 1176 | 3 221 30 267 72 . 316 166 20 1 80 Move 3950 | 87 205 183 564 118 119 834 557 570 518 195 Hop 2 | . . . . . . . . 2 . . Pick Up 15 | 4 1 . 4 . . 4 1 1 . . Fast Attach 47 | 9 . 2 16 1 . 9 5 1 2 2 Attach 8 | . . . 1 1 . 1 2 1 . 2 Detach 8 | 1 . . 3 1 . 1 . 2 . . Swap 14 | . . . 8 . . 5 1 . . . Drop 34 | 2 1 . 19 6 . 4 . 1 . 1 Fire 114 | 2 9 . 65 . . 25 7 6 . . Melee 9 | . . . 4 . . . . . . 5 Ram 1 | . . . . 1 . . . . . . Kick . | . . . . . . . . . . . Crush . | . . . . . . . . . . . Escape Stasis . | . . . . . . . . . . . Rewire . | . . . . . . . . . . . Trap . | . . . . . . . . . . . Miscellaneous . | . . . . . . . . . . . Route ------- -11/Scrapyard -10/Materials (discovered 4 exits: *Mat x3 / Min) -9/Materials (discovered 3 exits: *Mat x3) -8/Materials -7/Factory -7/Waste -7/Factory -7/Lower Caves -7/Lower Caves -7/Zion (discovered 2 exits: [*Dee] / [*Pro]) -7/Deep Caves History --------- Turn | Location | Event 18 | -11/Scrapyard | Discovered new exit (range 16) 99 | -11/Scrapyard | Entered Materials 273 | -10/Materials | Identified exit to Materials 302 | -10/Materials | Build established: Mutant 478 | -10/Materials | Identified exit to Mines 511 | -10/Materials | Entered another Materials area 511 | -9/Materials | Evolved 2 slots: Propulsion x1, Utility x1 653 | -9/Materials | Identified exit to Materials 681 | -9/Materials | Entered another Materials area 681 | -8/Materials | Evolved 2 slots: Propulsion x1, Weapon x1 1211 | -8/Materials | Build established: Scavenger-Mutant 1298 | -8/Materials | Lost 3 parts (3w) 1360 | -8/Materials | Discovered new exit (range 3) 1396 | -8/Materials | Garrison activated, responded to threat 1423 | -8/Materials | Entered Factory 1423 | -7/Factory | Evolved 2 slots: Power x1, Utility x1 1606 | -7/Factory | Sucked down chute 1606 | -7/Factory | Entered Waste 1682 | -7/Waste | Spotted C-40 Crusher 1686 | -7/Waste | Spotted C-40 Crusher 1711 | -7/Waste | Spotted C-40 Crusher 1741 | -7/Waste | Spotted C-40 Crusher 1743 | -7/Waste | Spotted C-40 Crusher 1743 | -7/Waste | Spotted C-40 Crusher 1804 | -7/Waste | Discovered new exit (range 10) 1809 | -7/Waste | Build established: Hacker-Mutant 1821 | -7/Waste | Entered Factory 2744 | -7/Factory | Garrison activated, responded to threat 2864 | -7/Factory | Lost 7 parts (1p4n2w) 2873 | -7/Factory | Discovered new exit (range 17) 2883 | -7/Factory | Entered Lower Caves 3612 | -7/Lower Caves | Build established: Bomber 3686 | -7/Lower Caves | Encountered a Warlord checkpoint 3692 | -7/Lower Caves | Discovered new exit (range 8) 3797 | -7/Lower Caves | Entered another Lower Caves area 4165 | -7/Lower Caves | Found Prototype Device 4165 | -7/Lower Caves | Identified Heart of Steel 4270 | -7/Lower Caves | Spotted B-75 Beast 4284 | -7/Lower Caves | Destroyed B-75 Beast 4311 | -7/Lower Caves | Lost 3 parts (1p2w) 4565 | -7/Lower Caves | Build established: Mutant 4610 | -7/Lower Caves | Discovered new exit (range 4) 4615 | -7/Lower Caves | Entered Zion 4851 | -7/Zion | Discovered new exit (range 15) 4960 | -7/Zion | Given A8's code to call for help 5466 | -7/Zion | Learned location of Warlord (-4) 5483 | -7/Zion | Learned location of Data Miner (-6) 5575 | -7/Zion | Found CR-A16's Pointy Stick 5602 | -7/Zion | Acquired unknown access codes intercepted by a Zionite 5671 | -7/Zion | Opened final containment barrier to the Deep Caves 5688 | -7/Zion | Discovered new exit (range 5) 5691 | -7/Zion | Saw the warning signs outside the Deep Caves entrance 5695 | -7/Zion | Entered Deep Caves 5789 | -7/Deep Caves | Found Surveybot 24 Scanner 5796 | -7/Deep Caves | Found Surveybot 24 Chip 5988 | -7/Deep Caves | Attacked by Z-Imprinter 6002 | -7/Deep Caves | Core integrity fell below 50% 6009 | -7/Deep Caves | Core integrity fell below 20% 6013 | -7/Deep Caves | Destroyed by YT-38Y(z) with Zionite Laser-S Last Messages --------------- [Achievement: Adventurer] LOCATION=UNKNOWN GOAL=ESCAPE 05785_ Sneak attack on Surveybot 24. 05785_ Surveybot 24 destroyed. 05789_ Acquired Surveybot 24 Scanner. 05790_ Acquired 23 matter. 05794_ Dropped Heart of Steel. 05796_ Acquired Surveybot 24 Chip. [Achievement: Omniscient Cartographer] 05977_ NEW_ZION: Z-Facility proximity alert. 05980_ R0-MRS(o) is busy at the terminal. 05988_ Neutrino Core destroyed. Z-Imprinter: GET AWAY FROM HERE! I've worked too hard for our future just to have you ruin everything! 05991_ Hvy. Missile Launcher destroyed. 05997_ Airjet destroyed. 05997_ Gravmag System destroyed. 05998_ Deuterium Engine destroyed. 06001_ Surveybot 24 Scanner destroyed. Map ----- +----------------------------------------------------+ | | | | | | | | | | | | | | | | | ??################################################ | | ?###?##?########################################## | | ########################### ######### | | ? ######################### ## #### | | ###### ################## ## | | ## # ####### ###### | | ##### ###### ##### | | ################ | | ################ | | ################# | | ################# | | " """""" ################ | | """""""""" ############## | | """""""""" | | """""""""" z | | """"""" z | | """""""""" I ############# | | """""""""" @ ############### | | """""""""" ############ | | """""""""" ######### | | """"" " " ######## | | """""" ####### | | """"" ####### | | """""" ####### | | """""" ;######## | | """""""" ########### | | """""""""" ########### | | """ ########### | | """ """ ############# | | """ """"" ############## | | """ """"""" ####### ### | | """ """"""" ####### | | """?""""""" ####### # | | """ """"" ######## # # | | ?"" ?"" ######### ## # | | """ ######### ### # | | """""""""" ####### ### # | | """""""" ###### ### # | | ? ###### ##### | | ? ? ##### ##### | | ? ##### ##### # | | ? ? ? #### ###### | +----------------------------------------------------+ Best States ------------- Heat Dissipation 34 Energy Generation 23 Energy Capacity 315 Matter Stores 300 Matter Capacity 300 Sight Range 22 Terrain Scan Range 24 Terrain Scan Density 2010 Additional Mass Support 9 Armor Coverage 225 Resistance: KI 20 Resistance: TH 20 Resistance: EX 20 Resistance: EM 20 Resistance: I 20 Resistance: S 20 Resistance: P 20 Weapon Cycling 15 Evasion (%) 64 Offensive Hacking 21 Item Schematics ----------------- Riot Gun | -7/Zion | Free Battle Rifle | -7/Zion | Free Battle Cannon | -7/Zion | Free Plasma Flamer | -7/Zion | Free Phasing Sabre | -7/Zion | Free Robot Schematics ------------------ None Fabricated ------------ Nothing Alien Tech Used ----------------- None Achievements -------------- Adventurer Omniscient Cartographer Robot Respite Signs Are For Wimps Challenges ------------ None Game ------ Seed ResetHoverInsulator Manual? 0 Play Time 01:12:39 Cumulative 83.2 hours Start 2020.11.28 @ 10:16:21 End 2020.11.28 @ 11:27:43 Sessions 1 Manual Loads 0 Difficulty Adventurer Special Mode Halloween2020/ForbiddenLore Game No. 47 Rogue 40 Adventurer 7 Explorer 0 Win Type - Total 0 Types 0/0/0/0/0/0/0/0/0 Lore% 16 Gallery% 26 Achievement% 16 Wizard Run 0 Options --------- ASCII 0 Keyboard 1 Movement Numpad Keybinds 0 Fullscreen 1 Font 18/SmallcapsGlow Map View 76x50 Tactical HUD 1 Map Filters NONE Filters NONE Steam 1 RUN: 44658b52-8075-477b-a1be-6364ba08ba46